bitfinex/quotes_BTCUSD_20241229
["timestamp","ask_amount","ask_price","bid_price","bid_amount"]
[1735479137139,1.20047812,95062.0,95061.0,0.04725865]
[1735479137545,1.18397264,95062.0,95061.0,0.04725865]
[1735479138210,1.08397264,95062.0,95061.0,0.04725865]
[1735479138568,1.18397264,95062.0,95061.0,0.04725865]
[1735479139190,1.08397264,95062.0,95061.0,0.04725865]
[1735479140499,1.18414344,95062.0,95061.0,0.04725865]
[1735479140686,1.09666265,95062.0,95061.0,0.04725865]
[1735479141829,1.08015712,95062.0,95061.0,0.04725865]
[1735479144857,1.09666265,95062.0,95061.0,0.04725865]
[1735479145880,1.09766265,95062.0,95061.0,0.04725865]
[1735479146089,1.08115712,95062.0,95061.0,0.04725865]
[1735479146222,1.18514344,95062.0,95061.0,0.04725865]
[1735479147114,1.08115712,95062.0,95061.0,0.12585865]
[1735479147602,1.08115712,95062.0,95061.0,0.04725865]
[1735479149060,1.09766265,95062.0,95061.0,0.04725865]
[1735479152986,0.22166265,95062.0,95061.0,0.04725865]
[1735479153202,4.66285678,95062.0,95061.0,0.04725865]
[1735479153431,4.7668431,95062.0,95061.0,0.04725865]
[1735479155973,4.76964772,95062.0,95061.0,0.04725865]
[1735479156167,4.83504219,95062.0,95061.0,0.04725865]
[1735479157287,0.1,95034.0,95033.0,4.54e-05]
[1735479157475,0.20398632,95034.0,95033.0,4.54e-05]
[1735479157679,0.10398632,95034.0,95033.0,4.54e-05]
[1735479158212,0.20169895,95034.0,95033.0,4.54e-05]
[1735479158330,3.68898632,95034.0,95033.0,4.54e-05]
[1735479158770,3.6894954,95034.0,95033.0,4.54e-05]
[1735479159382,3.6904954,95034.0,95033.0,4.54e-05]
[1735479160671,3.70981015,95034.0,95033.0,4.54e-05]
[1735479161073,3.70700506,95034.0,95033.0,4.54e-05]
[1735479161273,3.81379647,95034.0,95033.0,4.54e-05]
[1735479162310,3.95572243,95034.0,95033.0,4.54e-05]
[1735479163168,3.81379647,95034.0,95033.0,4.54e-05]
[1735479163354,3.81099138,95034.0,95033.0,4.54e-05]
[1735479164938,3.79448172,95034.0,95033.0,4.54e-05]
[1735479165541,3.91320085,95034.0,95033.0,4.54e-05]
[1735479166865,3.94297077,95034.0,95033.0,4.54e-05]
[1735479167064,3.91600616,95034.0,95033.0,4.54e-05]
[1735479167843,3.91320085,95034.0,95033.0,4.54e-05]
[1735479168415,3.92971196,95034.0,95033.0,4.54e-05]
[1735479170857,3.92971196,95034.0,95000.0,0.1032854]
[1735479170858,0.535095,95014.0,95000.0,0.1032854]
[1735479170978,0.535095,95014.0,94974.0,0.09467486]
[1735479170979,0.1,94978.0,94974.0,0.08991026]
[1735479171180,3.63679174,94977.0,94974.0,0.08991026]
[1735479171488,0.0047591,94977.0,94976.0,0.08128087]
[1735479171702,0.0165172,94983.0,94980.0,0.08128087]
[1735479171905,0.02276104,95026.0,94992.0,0.125]
[1735479172104,0.02276104,95026.0,94983.0,0.1]
[1735479172105,0.1,95058.0,95014.0,0.08128087]
[1735479172383,0.46603299,95029.0,95023.0,0.08128087]
[1735479172506,0.00050908,95040.0,95029.0,0.0467]
[1735479172706,0.00050908,95040.0,95030.0,0.00105207]
[1735479172912,0.00050908,95040.0,95030.0,0.00105208]
[1735479173720,0.00150908,95040.0,95030.0,0.00105208]
[1735479174662,0.01650718,95038.0,95030.0,0.00105208]
[1735479175136,0.00050908,95040.0,95030.0,0.00105208]
[1735479175335,0.00150908,95040.0,95030.0,0.00205208]
[1735479175629,0.00050908,95040.0,95030.0,0.00113748]
[1735479175946,0.001,95038.0,95030.0,0.00313748]
[1735479176305,0.001,95038.0,95030.0,0.00113748]
[1735479176535,0.001,95038.0,95030.0,0.00313748]
[1735479176900,0.001,95038.0,95030.0,0.00113748]
[1735479177270,0.001,95038.0,95030.0,0.08141835]
[1735479177600,0.00067988,95040.0,95030.0,0.00113748]
[1735479177810,0.00067988,95040.0,95030.0,0.08141835]
[1735479178217,0.01650696,95038.0,95030.0,0.08141835]
[1735479178613,0.01750696,95038.0,95030.0,0.08241835]
[1735479179006,0.001,95038.0,95031.0,0.12472815]
[1735479179211,0.001,95038.0,95036.0,0.0467]
[1735479179455,0.00067988,95040.0,95037.0,0.00105198]
[1735479179969,0.00067988,95040.0,95037.0,0.08133285]
[1735479179970,0.00167988,95040.0,95037.0,0.08133285]
[1735479180106,0.00067988,95040.0,95037.0,0.08133285]
[1735479180540,0.00067988,95040.0,95038.0,0.07928087]
[1735479180712,0.00067988,95040.0,95039.0,0.07935197]
[1735479182278,0.00167988,95040.0,95039.0,0.07935197]
[1735479183237,0.00067988,95040.0,95039.0,0.07935197]
[1735479183445,0.00167988,95040.0,95039.0,0.08635197]
[1735479183645,0.01818555,95040.0,95039.0,0.08635197]
[1735479183874,0.01818555,95040.0,95039.0,0.08935197]
[1735479185582,0.0001708,95062.0,95049.0,0.07928087]
[1735479185838,0.0001708,95062.0,95051.0,0.0822]
[1735479186058,0.0001708,95062.0,95052.0,0.00105181]
[1735479186219,0.0001708,95062.0,95053.0,0.0476]
[1735479186404,0.0001708,95062.0,95054.0,0.00105178]
[1735479186744,0.0001708,95062.0,95055.0,0.0304194]
[1735479186885,0.0001708,95062.0,95056.0,0.00105188]
[1735479187087,0.0001708,95062.0,95054.0,0.00105188]
[1735479187541,0.0001708,95062.0,95053.0,0.0496]
[1735479188735,0.0001708,95062.0,95054.0,0.004]
[1735479188931,0.01650352,95060.0,95054.0,0.004]
[1735479189146,0.01650352,95060.0,95053.0,0.0476]
[1735479189343,0.01650352,95060.0,95056.0,0.009]
[1735479189546,0.01650352,95060.0,95057.0,0.00105185]
[1735479190082,0.01650352,95060.0,95054.0,0.009]
[1735479190435,0.01650352,95060.0,95053.0,0.05265193]
[1735479190782,0.01650352,95060.0,95057.0,0.009]
[1735479191859,0.01750352,95060.0,95057.0,0.009]
[1735479192267,0.01650352,95060.0,95057.0,0.009]
[1735479192705,0.01650352,95060.0,95057.0,0.002]
[1735479193131,0.01650352,95060.0,95053.0,0.04865193]
[1735479193486,0.01750352,95060.0,95057.0,0.002]
[1735479193690,0.01750352,95060.0,95058.0,0.00105193]
[1735479193894,0.01650352,95060.0,95058.0,0.00105193]
[1735479194915,0.01650352,95060.0,95059.0,0.00105184]
[1735479195123,0.01650352,95060.0,95057.0,0.003]
[1735479195364,0.01650352,95060.0,95058.0,0.00105185]
[1735479195751,0.01650352,95060.0,95054.0,0.00105185]
[1735479195896,0.01650352,95060.0,95058.0,0.003]
[1735479196103,0.01750352,95060.0,95059.0,0.00105184]
[1735479197141,0.001,95060.0,95059.0,0.00105184]
[1735479197454,0.0001708,95062.0,95059.0,0.00105184]
[1735479197989,0.001,95060.0,95059.0,0.00705184]
[1735479198506,0.28007714,95092.0,95059.0,0.01251702]
[1735479198706,0.0942655,95088.0,95059.0,0.01551702]
[1735479198973,1.46898632,95087.0,95059.0,0.01551702]
[1735479199166,1.021,95086.0,95059.0,0.00951702]
[1735479199481,0.10398632,95085.0,95060.0,0.0057117]
[1735479199686,1.09098632,95085.0,95061.0,0.00105182]
[1735479199970,0.484,95084.0,95061.0,0.00105182]
[1735479200188,0.10398632,95083.0,95061.0,0.00105182]
[1735479200364,0.47898632,95083.0,95061.0,0.00105182]
[1735479200527,0.322,95082.0,95061.0,0.00105182]
[1735479200733,0.10398632,95081.0,95061.0,0.00105182]
[1735479200964,0.166,95080.0,95061.0,0.00105182]
[1735479201176,0.004,95092.0,95062.0,0.0782]
[1735479201348,0.10398632,95091.0,95064.0,0.0451]
[1735479201551,0.10398632,95091.0,95065.0,0.0010517]
[1735479201758,0.0001708,95095.0,95066.0,0.0782]
[1735479201759,0.0165015,95085.0,95066.0,0.0782]
[1735479201957,0.0165015,95085.0,95067.0,0.00105167]
[1735479202160,0.0165015,95085.0,95068.0,0.0220057]
[1735479202382,0.0165015,95085.0,95069.0,0.00105167]
[1735479202787,0.004,95083.0,95067.0,0.00105167]
[1735479203173,0.0165015,95085.0,95067.0,0.00105167]
[1735479203403,0.0165015,95085.0,95068.0,0.002]
[1735479203705,0.0165015,95085.0,95069.0,0.00105167]
[1735479204484,0.0165015,95085.0,95070.0,0.00105167]
[1735479204684,0.0165015,95085.0,95068.0,0.00105167]
[1735479205087,0.0001708,95095.0,95068.0,0.00105167]
[1735479205313,0.10398632,95094.0,95068.0,0.02141492]
[1735479205515,0.10398632,95094.0,95068.0,0.00105167]
[1735479205909,0.10398632,95094.0,95068.0,0.00505167]
[1735479206307,0.12470545,95094.0,95068.0,0.00105167]
[1735479206514,0.12470545,95094.0,95069.0,0.00105167]
[1735479206734,0.12470545,95094.0,95067.0,0.00105167]
[1735479206935,0.01279692,95093.0,95067.0,0.00105167]
[1735479207292,0.10406968,95092.0,95067.0,0.00105167]
[1735479208438,0.01650141,95086.0,95067.0,0.00105167]
[1735479210077,0.01650141,95086.0,95067.0,0.00205167]
[1735479210307,0.01650141,95086.0,95067.0,0.00505167]
[1735479210895,0.01650141,95086.0,95068.0,0.0782]
[1735479211107,0.01650141,95086.0,95070.0,0.0782]
[1735479211268,0.01650141,95086.0,95071.0,0.07925167]
[1735479213184,0.01650141,95086.0,95071.0,0.08025167]
[1735479213607,0.01650141,95086.0,95071.0,0.08325167]
[1735479214559,0.02856726,95086.0,95071.0,0.08325167]
[1735479214758,0.01650141,95086.0,95071.0,0.08325167]
[1735479216626,0.01650141,95086.0,95072.0,0.0473]
[1735479216800,0.01650141,95086.0,95074.0,0.0757]
[1735479217006,0.01650141,95086.0,95075.0,0.00105166]
[1735479218136,0.01650141,95086.0,95075.0,0.00405166]
[1735479219801,0.01650141,95086.0,95076.0,0.0757]
[1735479220009,0.01650141,95086.0,95077.0,0.00105161]
[1735479220718,0.01650141,95086.0,95076.0,0.0757]
[1735479221521,0.01650141,95086.0,95077.0,0.003]
[1735479221715,0.01650141,95086.0,95076.0,0.0767]
[1735479222577,0.01650141,95086.0,95076.0,0.0757]
[1735479222930,0.01650141,95086.0,95077.0,0.001]
[1735479223340,0.01650141,95086.0,95076.0,0.07975168]
[1735479224148,0.01650141,95086.0,95076.0,0.07675168]
[1735479224356,0.01650141,95086.0,95077.0,0.003]
[1735479224871,0.01650141,95086.0,95076.0,0.07775168]
[1735479225028,0.00190208,95085.0,95076.0,0.08075168]
[1735479225229,0.00190208,95085.0,95076.0,0.07975168]
[1735479225458,0.01650141,95086.0,95076.0,0.07975168]
[1735479225655,0.01650141,95086.0,95077.0,0.001]
[1735479226097,0.00190208,95085.0,95076.0,0.0787]
[1735479226305,0.00190208,95085.0,95076.0,0.0757]
[1735479226604,0.00190208,95085.0,95077.0,0.003]
[1735479226917,0.00190208,95085.0,95076.0,0.0767]
[1735479227279,0.00190208,95085.0,95076.0,0.0807]
[1735479227477,0.00190208,95085.0,95076.0,0.0767]
[1735479228021,0.00190208,95085.0,95077.0,0.004]
[1735479228179,0.00190208,95085.0,95076.0,0.0767]
[1735479228379,0.00190208,95085.0,95076.0,0.0757]
[1735479228932,0.00190208,95085.0,95077.0,0.001]
[1735479229288,0.00190208,95085.0,95076.0,0.0757]
[1735479229516,0.14127091,95088.0,95076.0,0.0807]
[1735479229722,2.49,95087.0,95076.0,0.0807]
[1735479229944,2.55450651,95087.0,95076.0,0.001]
[1735479230147,4.422475,95086.0,95077.0,0.004]
[1735479230365,4.422475,95086.0,95077.0,0.005]
[1735479230567,0.016501,95084.0,95077.0,0.001]
[1735479231329,0.06465019,95083.0,95077.0,0.001]
[1735479231536,0.016501,95084.0,95077.0,0.004]
[1735479231759,0.14127091,95084.0,95077.0,0.003]
[1735479232921,0.14127091,95083.0,95076.0,0.001]
[1735479233131,0.14127091,95083.0,95077.0,0.004]
[1735479233346,0.14127091,95083.0,95077.0,0.006]
[1735479233954,0.14127091,95083.0,95077.0,0.002]
[1735479234153,0.14127091,95083.0,95077.0,0.006]
[1735479234566,0.0165011,95082.0,95077.0,0.006]
[1735479234819,0.0165011,95082.0,95077.0,0.004]
[1735479235220,0.0165011,95082.0,95077.0,0.006]
[1735479235581,0.0165011,95082.0,95077.0,0.004]
[1735479236030,4.54546927,95081.0,95077.0,0.006]
[1735479236187,0.02071913,95078.0,95077.0,0.006]
[1735479236384,4.80520937,95078.0,95077.0,0.006]
[1735479236634,4.80711771,95078.0,95077.0,0.002]
[1735479236807,4.91110403,95078.0,95077.0,0.002]
[1735479237046,4.91110403,95078.0,95077.0,0.007]
[1735479237047,4.93089569,95078.0,95077.0,0.007]
[1735479237246,4.93089569,95078.0,95077.0,0.002]
[1735479237721,4.93989569,95078.0,95077.0,0.003]
[1735479237892,0.12071913,95077.0,95076.0,8.54e-05]
[1735479238092,4.78319569,95077.0,95076.0,8.54e-05]
[1735479238236,4.78510498,95077.0,95076.0,8.54e-05]
[1735479238440,4.80489664,95077.0,95076.0,8.54e-05]
[1735479239203,4.80889664,95077.0,95076.0,8.54e-05]
[1735479239515,4.82540234,95077.0,95076.0,8.54e-05]
[1735479240128,4.59636,95077.0,95076.0,8.54e-05]
[1735479240247,4.60436,95077.0,95076.0,0.0010854]
[1735479240447,4.68406468,95077.0,95076.0,0.0010854]
[1735479241058,4.66427302,95077.0,95076.0,0.0010854]
[1735479242190,4.58456834,95077.0,95076.0,0.0010854]
[1735479242843,4.86810683,95077.0,95076.0,0.0010854]
[1735479243859,4.56806264,95077.0,95076.0,0.0010854]
[1735479244275,0.14558764,95077.0,95076.0,0.0010854]
[1735479244486,4.56806264,95077.0,95076.0,0.0010854]
[1735479244680,4.53412443,95077.0,95076.0,0.0010854]
[1735479244863,1.03964943,95077.0,95076.0,0.0010854]
[1735479245189,0.012,95077.0,95076.0,0.0010854]
[1735479245507,0.02850322,95077.0,95076.0,0.0010854]
[1735479245846,0.02450322,95077.0,95076.0,0.0010854]
[1735479246290,0.02850322,95077.0,95076.0,0.0010854]
[1735479246491,0.02050322,95077.0,95076.0,8.54e-05]
[1735479246865,0.02850322,95077.0,95076.0,0.0010854]
[1735479247083,0.02050322,95077.0,95076.0,8.54e-05]
[1735479247428,0.02150322,95077.0,95076.0,0.0070854]
[1735479247559,0.01750322,95077.0,95076.0,0.0070854]
[1735479247755,0.01650322,95077.0,95076.0,0.0030854]
[1735479247950,0.01750322,95077.0,95076.0,0.0110854]
[1735479248265,0.01750322,95077.0,95076.0,0.0080854]
[1735479248677,0.01750322,95077.0,95076.0,0.0110854]
[1735479249027,0.01767402,95077.0,95076.0,0.0110854]
[1735479250970,4.54413534,95077.0,95076.0,0.0110854]
[1735479251167,4.65003162,95077.0,95076.0,0.0110854]
[1735479251773,4.65003162,95077.0,95076.0,0.0080854]
[1735479252217,4.65003162,95077.0,95076.0,0.0090854]
[1735479252422,4.68206054,95077.0,95076.0,0.0090854]
[1735479253214,4.68106054,95077.0,95076.0,0.0010854]
[1735479253439,4.82267898,95077.0,95076.0,0.0010854]
[1735479253644,4.80617576,95077.0,95076.0,0.0010854]
[1735479253802,4.80617576,95077.0,95076.0,0.0040854]
[1735479254227,4.82268007,95077.0,95076.0,8.54e-05]
[1735479254434,4.68106163,95077.0,95076.0,8.54e-05]
[1735479254744,4.68706163,95077.0,95076.0,8.54e-05]
[1735479254946,4.68206163,95077.0,95076.0,8.54e-05]
[1735479255126,4.68106163,95077.0,95076.0,8.54e-05]
[1735479255345,4.68506163,95077.0,95076.0,8.54e-05]
[1735479256380,4.69106163,95077.0,95076.0,0.0010854]
[1735479256781,4.7108604,95077.0,95076.0,0.0010854]
[1735479256944,4.57484516,95077.0,95076.0,0.0010854]
[1735479257150,4.26437016,95077.0,95076.0,0.0010854]
[1735479257350,4.54790865,95077.0,95049.0,0.09822728]
[1735479257594,4.63176255,95076.0,95049.0,0.09822728]
[1735479257797,4.422475,95075.0,95046.0,0.09822728]
[1735479257997,0.10530128,95074.0,95049.0,0.00105193]
[1735479258206,0.14154071,95070.0,95049.0,0.00105193]
[1735479258355,4.52777628,95069.0,95049.0,0.00105193]
[1735479258550,4.52250259,95068.0,95049.0,0.00105193]
[1735479258867,0.01650509,95065.0,95049.0,0.00105193]
[1735479259073,4.52777628,95064.0,95049.0,0.00105193]
[1735479259275,4.42378996,95063.0,95049.0,0.00105193]
[1735479259457,4.52646132,95062.0,95049.0,0.00205193]
[1735479259733,0.10398632,95061.0,95049.0,0.00205193]
[1735479259937,0.10398632,95062.0,95049.0,0.00205193]
[1735479260339,4.422475,95061.0,95049.0,0.00105193]
[1735479261172,2.729,95061.0,95049.0,0.00105193]
[1735479261432,2.75,95061.0,95049.0,0.00105193]
[1735479261910,0.01650509,95065.0,95053.0,0.09822728]
[1735479262139,0.01650509,95065.0,95054.0,0.00105187]
[1735479262534,0.01650509,95065.0,95056.0,0.09822728]
[1735479262664,0.01650509,95065.0,95057.0,0.00105187]
[1735479263702,0.01650509,95065.0,95056.0,0.09510111]
[1735479263906,0.01650509,95065.0,95059.0,0.09510111]
[1735479264264,0.14154071,95072.0,95060.0,0.09510111]
[1735479264685,0.01650401,95064.0,95060.0,0.09510111]
[1735479265367,0.01650401,95064.0,95063.0,0.21720111]
[1735479266563,0.01650401,95064.0,95063.0,0.22220111]
[1735479266909,0.01650401,95064.0,95063.0,0.21720111]
[1735479267293,0.01941415,95064.0,95063.0,0.22620111]
[1735479267673,0.01750401,95064.0,95063.0,0.22620111]
[1735479268247,0.01750401,95064.0,95063.0,0.23020111]
[1735479268472,0.01850401,95064.0,95063.0,0.23020111]
[1735479271606,0.01850401,95064.0,95063.0,0.1351]
[1735479271807,0.01850401,95064.0,95063.0,0.23020111]
[1735479272382,0.01850401,95064.0,95063.0,0.1351]
[1735479272713,0.01850401,95064.0,95063.0,0.23020111]
[1735479275217,0.01850401,95064.0,95063.0,0.1351]
[1735479276541,0.01850401,95064.0,95063.0,0.23020111]
[1735479285766,0.01867481,95064.0,95063.0,0.23020111]
[1735479293141,0.0021708,95064.0,95063.0,0.23020111]
[1735479295842,0.0021708,95064.0,95063.0,0.43418743]
[1735479296217,0.01867268,95064.0,95063.0,0.43418743]
[1735479298707,0.0001708,95077.0,95076.0,0.19510111]
[1735479298889,0.0001708,95077.0,95076.0,0.42298743]
[1735479299084,0.0001708,95077.0,95076.0,0.46528617]
[1735479299809,0.01667001,95077.0,95076.0,0.46528617]
[1735479300238,0.01767001,95077.0,95076.0,0.47428617]
[1735479300357,0.01667001,95077.0,95076.0,0.42298743]
[1735479300764,0.01767001,95077.0,95076.0,0.43198743]
[1735479300962,0.01867001,95077.0,95076.0,0.43798743]
[1735479302862,0.01867001,95077.0,95076.0,0.34288632]
[1735479303065,0.01867001,95077.0,95076.0,0.43798743]
[1735479305275,0.16467246,95112.0,95101.0,0.09510111]
[1735479305459,0.04328127,95111.0,95097.0,0.09510111]
[1735479306129,0.04328127,95111.0,95101.0,0.09510111]
[1735479307079,0.001,95112.0,95101.0,0.09510111]
[1735479307289,0.00131425,95114.0,95101.0,0.09510111]
[1735479307586,0.01649819,95110.0,95101.0,0.09510111]
[1735479309997,0.01649819,95110.0,95101.0,0.09610111]
[1735479311705,0.01666899,95110.0,95101.0,0.09610111]
[1735479311906,0.01219696,95109.0,95101.0,0.09610111]
[1735479313045,0.01219696,95109.0,95101.0,0.09510111]
[1735479313188,0.01219696,95109.0,95101.0,0.09610111]
[1735479316970,0.01666899,95110.0,95104.0,0.09014111]
[1735479318572,0.0001708,95110.0,95104.0,0.09014111]
[1735479320124,0.0001708,95110.0,95104.0,0.09114111]
[1735479321716,0.01649655,95109.0,95104.0,0.09114111]
[1735479321951,0.01649655,95109.0,95105.0,0.09014111]
[1735479322063,0.01649655,95109.0,95105.0,0.09925522]
[1735479322563,0.01649655,95109.0,95106.0,0.0813]
[1735479322790,0.01649655,95109.0,95108.0,0.09014111]
[1735479324722,0.01649655,95109.0,95108.0,0.09614111]
[1735479325748,0.01649655,95109.0,95108.0,0.09914111]
[1735479326631,0.01649655,95109.0,95108.0,0.009]
[1735479327675,0.04647058,95109.0,95108.0,0.009]
[1735479328074,0.01649655,95109.0,95108.0,0.009]
[1735479328283,4.54295787,95109.0,95108.0,0.009]
[1735479328497,4.75771822,95109.0,95108.0,0.009]
[1735479329174,4.77750681,95109.0,95108.0,0.009]
[1735479329356,4.77750681,95109.0,95108.0,0.006]
[1735479330329,4.74753278,95109.0,95108.0,0.006]
[1735479330712,4.74753278,95109.0,95101.0,8.54e-05]
[1735479330912,4.62648836,95108.0,95101.0,8.54e-05]
[1735479331093,4.422475,95107.0,95101.0,8.54e-05]
[1735479331290,0.13527476,95106.0,95101.0,8.54e-05]
[1735479331501,4.422475,95105.0,95101.0,8.54e-05]
[1735479331723,0.10530073,95104.0,95101.0,8.54e-05]
[1735479331927,0.10398632,95103.0,95101.0,8.54e-05]
[1735479332132,0.00131441,95102.0,95101.0,8.54e-05]
[1735479334142,0.14287515,95102.0,95101.0,8.54e-05]
[1735479334562,0.14156074,95102.0,95101.0,8.54e-05]
[1735479334984,0.14156074,95102.0,95101.0,0.0756854]
[1735479335159,0.14156074,95102.0,95101.0,0.16582651]
[1735479335664,0.14173154,95102.0,95101.0,0.16582651]
[1735479335877,0.14173154,95102.0,95101.0,0.18818916]
[1735479336102,0.14173154,95102.0,95101.0,0.16882651]
[1735479336524,0.0001708,95102.0,95101.0,0.16882651]
[1735479336941,0.0001708,95102.0,95101.0,0.16782651]
[1735479337248,0.0001708,95102.0,95101.0,0.16882651]
[1735479337451,0.0001708,95102.0,95101.0,0.16682651]
[1735479337642,0.0001708,95102.0,95101.0,0.16882651]
[1735479337979,0.0001708,95102.0,95101.0,0.16682651]
[1735479338121,0.0001708,95102.0,95101.0,0.30247548]
[1735479338320,0.0001708,95102.0,95101.0,0.31147548]
[1735479338515,0.0001708,95102.0,95101.0,0.40247548]
[1735479338719,0.0001708,95102.0,95101.0,0.40147548]
[1735479338923,0.0001708,95102.0,95101.0,0.17782651]
[1735479339353,0.0001708,95102.0,95101.0,0.27782651]
[1735479339557,0.0001708,95102.0,95101.0,0.27482651]
[1735479339756,0.0001708,95102.0,95101.0,0.27082651]
[1735479340076,0.0001708,95102.0,95101.0,0.37481283]
[1735479340281,0.0001708,95102.0,95101.0,0.36981283]
[1735479340686,0.0001708,95102.0,95101.0,0.37381283]
[1735479341441,0.0001708,95102.0,95101.0,0.41597411]
[1735479341763,0.0001708,95102.0,95101.0,0.42497411]
[1735479341965,0.0001708,95102.0,95101.0,0.41597411]
[1735479342372,0.0001708,95102.0,95101.0,0.42497411]
[1735479347365,0.0001708,95102.0,95101.0,0.28281283]
[1735479347533,0.0001708,95102.0,95101.0,0.38281283]
[1735479347770,0.0001708,95102.0,95101.0,0.28281283]
[1735479348118,0.0001708,95102.0,95101.0,0.38281283]
[1735479348853,0.0001708,95102.0,95101.0,0.27882651]
[1735479351020,0.0001708,95102.0,95101.0,0.10322651]
[1735479353779,0.0001708,95102.0,95101.0,0.09922651]
[1735479354393,0.0001708,95102.0,95101.0,0.09022651]
[1735479354808,0.0001708,95102.0,95101.0,0.09922651]
[1735479355031,0.0001708,95102.0,95101.0,0.09022651]
[1735479355371,0.0001708,95102.0,95101.0,0.10322651]
[1735479355782,0.0001708,95102.0,95101.0,0.09922651]
[1735479355980,0.0001708,95102.0,95101.0,0.10322651]
[1735479362268,0.0001708,95102.0,95101.0,0.20322651]
[1735479363229,0.0001708,95102.0,95101.0,0.45583548]
[1735479364684,0.0001708,95102.0,95101.0,0.43551283]
[1735479365580,0.0001708,95102.0,95101.0,0.53551283]
[1735479367348,0.0001708,95102.0,95101.0,0.52651283]
[1735479367559,0.0001708,95102.0,95101.0,0.53151283]
[1735479367892,0.0001708,95102.0,95101.0,0.53851283]
[1735479368127,0.0011708,95102.0,95101.0,0.59236411]
[1735479373855,0.0001708,95102.0,95101.0,0.57636411]
[1735479374053,0.0001708,95102.0,95101.0,0.58536411]
[1735479374232,0.0001708,95102.0,95101.0,0.59136411]
[1735479374434,0.0001708,95102.0,95101.0,0.58236411]
[1735479374772,0.0001708,95102.0,95101.0,0.58536411]
[1735479375080,0.0001708,95102.0,95101.0,0.59336411]
[1735479377359,0.0001708,95102.0,95101.0,0.53951283]
[1735479382296,0.0001708,95102.0,95101.0,0.34937172]
[1735479382496,0.0001708,95102.0,95101.0,0.33951283]
[1735479382706,0.0001708,95102.0,95101.0,0.31121283]
[1735479383494,0.0001708,95102.0,95101.0,0.30321283]
[1735479383827,0.0001708,95102.0,95101.0,0.30821283]
[1735479384038,0.0001708,95102.0,95101.0,0.29921283]
[1735479384256,0.0001708,95102.0,95101.0,0.20407172]
[1735479384453,0.0001708,95102.0,95101.0,0.19022651]
[1735479384865,0.0001708,95102.0,95101.0,0.19322651]
[1735479385306,0.0001708,95102.0,95101.0,0.20222651]
[1735479385556,0.0001708,95102.0,95101.0,0.10222651]
[1735479385777,0.00786788,95102.0,95101.0,0.09322651]
[1735479385973,0.00786788,95102.0,95101.0,0.10222651]
[1735479386477,0.0001708,95102.0,95101.0,0.09922651]
[1735479386882,0.05264001,95112.0,95101.0,0.10122651]
[1735479387097,4.191,95111.0,95101.0,0.10122651]
[1735479387292,4.191,95111.0,95101.0,0.09222651]
[1735479387449,4.191,95111.0,95101.0,0.09022651]
[1735479387651,0.001,95102.0,95101.0,0.09222651]
[1735479387848,0.001,95102.0,95101.0,0.09022651]
[1735479388264,0.00106007,95111.0,95101.0,0.09022651]
[1735479388491,3.776,95110.0,95101.0,0.09022651]
[1735479388700,3.756,95110.0,95101.0,0.09022651]
[1735479389081,3.74,95110.0,95101.0,0.09022651]
[1735479389287,4.02,95111.0,95101.0,0.09222651]
[1735479389600,3.782,95110.0,95101.0,0.09222651]
[1735479389959,0.002,95111.0,95101.0,0.09222651]
[1735479390149,3.8091,95110.0,95101.0,0.09222651]
[1735479390350,0.0721,95110.0,95101.0,0.09222651]
[1735479390597,4.422475,95109.0,95101.0,0.09222651]
[1735479390766,1.618,95108.0,95101.0,0.09222651]
[1735479390973,1.208,95109.0,95101.0,0.09222651]
[1735479391176,0.10398632,95108.0,95101.0,0.09022651]
[1735479391327,1.46798632,95108.0,95101.0,0.09022651]
[1735479391532,1.415,95107.0,95101.0,0.09022651]
[1735479391734,1.015,95107.0,95101.0,0.09022651]
[1735479391958,0.7,95107.0,95101.0,0.09022651]
[1735479392176,0.7,95109.0,95101.0,0.09022651]
[1735479392376,0.68,95109.0,95101.0,0.09022651]
[1735479392590,0.0711,95110.0,95101.0,0.09022651]
[1735479392591,0.39,95108.0,95101.0,0.09022651]
[1735479392844,0.0701,95110.0,95101.0,0.09022651]
[1735479393302,0.30621129,95123.0,95109.0,0.09014111]
[1735479393546,0.002,95108.0,95107.0,0.09014111]
[1735479393859,0.18874766,95120.0,95107.0,0.09014111]
[1735479394064,0.109,95119.0,95107.0,0.09014111]
[1735479394318,0.002,95110.0,95107.0,0.09014111]
[1735479394717,8.54e-05,95118.0,95108.0,0.00105132]
[1735479396130,0.0030854,95118.0,95108.0,0.00105132]
[1735479396534,0.228,95117.0,95108.0,0.00105132]
[1735479396840,0.0060854,95118.0,95108.0,0.00105132]
[1735479397445,0.0030854,95118.0,95108.0,0.00105132]
[1735479397851,0.003,95117.0,95108.0,0.00105132]
[1735479398230,0.002,95117.0,95108.0,0.00105132]
[1735479398653,8.54e-05,95118.0,95108.0,0.00105132]
[1735479399024,0.0030854,95118.0,95108.0,0.00105132]
[1735479399338,8.54e-05,95118.0,95108.0,0.00105132]
[1735479399917,0.002,95117.0,95108.0,0.00105132]
[1735479400126,0.002,95117.0,95108.0,0.08205132]
[1735479400853,0.0030854,95118.0,95108.0,0.08205132]
[1735479401278,0.0060854,95118.0,95108.0,0.08205132]
[1735479401500,0.01795624,95118.0,95108.0,0.08205132]
[1735479401669,0.003,95117.0,95108.0,0.08205132]
[1735479403053,0.01495624,95118.0,95108.0,0.08205132]
[1735479403570,0.01695624,95118.0,95108.0,0.08205132]
[1735479404774,0.0030854,95118.0,95108.0,0.00105132]
[1735479405003,0.0030854,95118.0,95116.0,0.09014111]
[1735479405244,0.0030854,95118.0,95117.0,0.09014111]
[1735479406242,8.54e-05,95118.0,95117.0,0.09014111]
[1735479406480,0.0010854,95118.0,95117.0,0.09114111]
[1735479407087,8.54e-05,95118.0,95117.0,0.09114111]
[1735479407246,0.0010854,95118.0,95117.0,0.09114111]
[1735479409172,0.0010854,95118.0,95117.0,0.21764111]
[1735479410257,8.54e-05,95118.0,95117.0,0.21764111]
[1735479410431,8.54e-05,95118.0,95117.0,0.21864111]
[1735479411607,8.54e-05,95118.0,95117.0,0.21764111]
[1735479411956,8.54e-05,95118.0,95117.0,0.22464111]
[1735479412626,0.03057579,95118.0,95117.0,0.09814111]
[1735479413882,0.03057579,95118.0,95117.0,0.09714111]
[1735479414251,0.03157579,95118.0,95117.0,0.09714111]
[1735479414672,0.03157579,95118.0,95117.0,0.09014111]
[1735479414917,0.03157579,95118.0,95117.0,0.09114111]
[1735479415889,0.17185675,95118.0,95117.0,0.001]
[1735479416089,0.24200054,95118.0,95117.0,0.001]
[1735479416589,4.66447554,95118.0,95117.0,0.001]
[1735479418290,4.44147058,95118.0,95117.0,0.001]
[1735479418915,0.01899558,95118.0,95117.0,0.001]
[1735479419111,4.5831102,95118.0,95117.0,0.001]
[1735479419419,4.58205013,95118.0,95117.0,0.001]
[1735479420351,4.58213553,95118.0,95117.0,0.001]
[1735479421496,4.440525,95118.0,95117.0,0.001]